[Event "Titled Tuesday Blitz February 21 Early 2023"]
[White "Aslanov, Umid"]
[Black "Weetik, Vjacheslav"]
[WhiteFideId "13412620"]
[BlackFideId "4153472"]
[WhiteElo "2273"]
[BlackElo "2423"]
[Result "1-0"]
[Round "03"]
[TimeControl "180+2"]
[Date "2023.02.21"]
[WhiteClock "0:00:25"]
[BlackClock "0:00:02"]

1. e4 {[%clk 0:03:00]}  c5 {[%clk 0:02:56]} 2. Nf3 {[%clk 0:03:01]}  Nc6 {[%clk 0:02:56]} 3. d4 {[%clk 0:03:01]}  cxd4 {[%clk 0:02:57]} 4. Nxd4 {[%clk 0:03:02]}  g6 {[%clk 0:02:57]} 5. c4 {[%clk 0:03:02]}  Nf6 {[%clk 0:02:57]} 6. Nc3 {[%clk 0:03:02]}  d6 {[%clk 0:02:58]} 7. Be2 {[%clk 0:03:00]}  Nxd4 {[%clk 0:02:58]} 8. Qxd4 {[%clk 0:02:59]}  Bg7 {[%clk 0:02:58]} 9. Be3 {[%clk 0:02:59]}  O-O {[%clk 0:02:59]} 10. Qd2 {[%clk 0:02:59]}  a5 {[%clk 0:03:00]} 11. O-O {[%clk 0:02:48]}  a4 {[%clk 0:03:00]} 12. Bd4 {[%clk 0:02:36]}  Qa5 {[%clk 0:02:58]} 13. Rfd1 {[%clk 0:02:32]}  Be6 {[%clk 0:02:56]} 14. f3 {[%clk 0:02:27]}  Rfc8 {[%clk 0:02:52]} 15. b3 {[%clk 0:02:22]}  axb3 {[%clk 0:02:44]} 16. axb3 {[%clk 0:02:23]}  Qxa1 {[%clk 0:02:43]} 17. Rxa1 {[%clk 0:02:24]}  Rxa1+ {[%clk 0:02:43]} 18. Kf2 {[%clk 0:02:25]}  Rca8 {[%clk 0:02:15]} 19. Na4 {[%clk 0:01:46]}  Ra3 {[%clk 0:02:04]} 20. Qb2 {[%clk 0:01:35]}  R3xa4 {[%clk 0:01:45]} 21. bxa4 {[%clk 0:01:35]}  Rxa4 {[%clk 0:01:45]} 22. g4 {[%clk 0:01:31]}  Bxc4 {[%clk 0:01:12]} 23. Bxc4 {[%clk 0:01:05]}  Rxc4 {[%clk 0:01:12]} 24. Ke2 {[%clk 0:01:00]}  g5 {[%clk 0:00:48]} 25. Kd3 {[%clk 0:00:54]}  Rc7 {[%clk 0:00:33]} 26. Qb6 {[%clk 0:00:47]}  Ne8 {[%clk 0:00:30]} 27. Bxg7 {[%clk 0:00:44]}  Kxg7 {[%clk 0:00:30]} 28. h4 {[%clk 0:00:42]}  h6 {[%clk 0:00:30]} 29. hxg5 {[%clk 0:00:42]}  hxg5 {[%clk 0:00:31]} 30. Qb5 {[%clk 0:00:42]}  Kf8 {[%clk 0:00:14]} 31. Qxg5 {[%clk 0:00:41]}  e5 {[%clk 0:00:14]} 32. Qd8 {[%clk 0:00:39]}  Rc5 {[%clk 0:00:09]} 33. Qb6 {[%clk 0:00:35]}  Rc7 {[%clk 0:00:08]} 34. Ke3 {[%clk 0:00:35]}  Ke7 {[%clk 0:00:08]} 35. f4 {[%clk 0:00:35]}  exf4+ {[%clk 0:00:08]} 36. Kxf4 {[%clk 0:00:35]}  Rd7 {[%clk 0:00:09]} 37. g5 {[%clk 0:00:34]}  Nc7 {[%clk 0:00:08]} 38. Kf5 {[%clk 0:00:32]}  Ne6 {[%clk 0:00:09]} 39. Qb2 {[%clk 0:00:30]}  Rc7 {[%clk 0:00:08]} 40. Qf6+ {[%clk 0:00:29]}  Ke8 {[%clk 0:00:08]} 41. g6 {[%clk 0:00:28]}  Ng7+ {[%clk 0:00:01]} 42. Qxg7 {[%clk 0:00:26]}  fxg6+ {[%clk 0:00:01]} 43. Qxg6+ {[%clk 0:00:27]}  Kd7 {[%clk 0:00:01]} 44. Qe6+ {[%clk 0:00:27]}  Kc6 {[%clk 0:00:01]} 45. Kf6 {[%clk 0:00:27]}  Rd7 {[%clk 0:00:01]} 46. Qd5+ {[%clk 0:00:25]}  Kc7 {[%clk 0:00:02]} 47. Ke6 {[%clk 0:00:25]} 1-0


[Site "https://www.chess.com"]

[Event "Titled Tuesday Blitz February 21 Early 2023"]
[White "Shohat, Yotam"]
[Black "Darini, Pouria"]
[WhiteFideId "2813955"]
[BlackFideId "12502200"]
[WhiteElo "2346"]
[BlackElo "2401"]
[Result "1-0"]
[Round "03"]
[TimeControl "180+2"]
[Date "2023.02.21"]
[WhiteClock "0:00:57"]
[BlackClock "0:00:28"]

1. e4 {[%clk 0:03:00]}  c5 {[%clk 0:02:57]} 2. Nf3 {[%clk 0:03:00]}  Nc6 {[%clk 0:02:58]} 3. d4 {[%clk 0:02:59]}  cxd4 {[%clk 0:02:59]} 4. Nxd4 {[%clk 0:02:59]}  e5 {[%clk 0:02:59]} 5. Nb5 {[%clk 0:02:59]}  d6 {[%clk 0:02:58]} 6. N1c3 {[%clk 0:02:59]}  a6 {[%clk 0:02:58]} 7. Na3 {[%clk 0:02:59]}  Be6 {[%clk 0:02:58]} 8. Nc4 {[%clk 0:02:58]}  Nf6 {[%clk 0:02:57]} 9. Ne3 {[%clk 0:02:56]}  Rc8 {[%clk 0:02:48]} 10. g3 {[%clk 0:02:49]}  Nd4 {[%clk 0:02:31]} 11. Bg2 {[%clk 0:02:48]}  h5 {[%clk 0:02:32]} 12. h4 {[%clk 0:02:46]}  g6 {[%clk 0:02:17]} 13. O-O {[%clk 0:02:46]}  Qc7 {[%clk 0:02:14]} 14. Ncd5 {[%clk 0:02:41]}  Bxd5 {[%clk 0:02:13]} 15. exd5 {[%clk 0:02:41]}  Nxc2 {[%clk 0:02:08]} 16. Nxc2 {[%clk 0:02:35]}  Qxc2 {[%clk 0:02:09]} 17. Bg5 {[%clk 0:02:35]}  Qxd1 {[%clk 0:02:07]} 18. Rfxd1 {[%clk 0:02:34]}  Nh7 {[%clk 0:01:12]} 19. Rac1 {[%clk 0:02:10]}  Rxc1 {[%clk 0:01:09]} 20. Rxc1 {[%clk 0:02:10]}  Kd7 {[%clk 0:00:46]} 21. f4 {[%clk 0:01:01]}  f6 {[%clk 0:00:27]} 22. fxe5 {[%clk 0:01:00]}  f5 {[%clk 0:00:28]} 23. e6+ {[%clk 0:00:57]} 1-0


[Site "https://www.chess.com"]

[Event "Titled Tuesday Blitz February 21 Early 2023"]
[White "Sokolovsky, Yahli"]
[Black "Heinemann, Josefine"]
[WhiteFideId "2820242"]
[BlackFideId "12900460"]
[WhiteElo "2461"]
[BlackElo "2289"]
[Result "1-0"]
[Round "03"]
[TimeControl "180+2"]
[Date "2023.02.21"]
[WhiteClock "0:00:14"]
[BlackClock "0:00:02"]

1. b3 {[%clk 0:03:00]}  e5 {[%clk 0:02:58]} 2. e3 {[%clk 0:02:58]}  d5 {[%clk 0:02:57]} 3. Bb2 {[%clk 0:02:58]}  Bd6 {[%clk 0:02:56]} 4. c4 {[%clk 0:02:57]}  c6 {[%clk 0:02:55]} 5. Nf3 {[%clk 0:02:57]}  Qe7 {[%clk 0:02:49]} 6. cxd5 {[%clk 0:02:52]}  cxd5 {[%clk 0:02:47]} 7. Nc3 {[%clk 0:02:52]}  Nf6 {[%clk 0:02:35]} 8. Nb5 {[%clk 0:02:52]}  Nc6 {[%clk 0:02:35]} 9. Nxd6+ {[%clk 0:02:43]}  Qxd6 {[%clk 0:02:36]} 10. Bb5 {[%clk 0:02:44]}  Nd7 {[%clk 0:02:30]} 11. O-O {[%clk 0:02:33]}  O-O {[%clk 0:02:28]} 12. Qc1 {[%clk 0:02:25]}  Re8 {[%clk 0:02:18]} 13. Qc3 {[%clk 0:02:04]}  a6 {[%clk 0:02:13]} 14. Bxc6 {[%clk 0:01:13]}  bxc6 {[%clk 0:02:12]} 15. d4 {[%clk 0:01:13]}  e4 {[%clk 0:02:06]} 16. Ne5 {[%clk 0:01:14]}  Nxe5 {[%clk 0:01:57]} 17. dxe5 {[%clk 0:01:15]}  Qg6 {[%clk 0:01:57]} 18. f4 {[%clk 0:01:11]}  exf3 {[%clk 0:01:54]} 19. Rxf3 {[%clk 0:01:11]}  Be6 {[%clk 0:01:34]} 20. Raf1 {[%clk 0:01:04]}  Rac8 {[%clk 0:01:23]} 21. Qc5 {[%clk 0:00:59]}  Qd3 {[%clk 0:01:14]} 22. Qa7 {[%clk 0:00:56]}  c5 {[%clk 0:00:43]} 23. Kh1 {[%clk 0:00:35]}  Rf8 {[%clk 0:00:37]} 24. Ba3 {[%clk 0:00:36]}  Qb5 {[%clk 0:00:32]} 25. Rc1 {[%clk 0:00:36]}  Rfd8 {[%clk 0:00:21]} 26. Rxc5 {[%clk 0:00:24]}  Rxc5 {[%clk 0:00:19]} 27. Qxc5 {[%clk 0:00:24]}  Qe2 {[%clk 0:00:18]} 28. h3 {[%clk 0:00:23]}  Qxa2 {[%clk 0:00:14]} 29. Qe7 {[%clk 0:00:23]}  Rc8 {[%clk 0:00:12]} 30. Rg3 {[%clk 0:00:18]}  Qa1+ {[%clk 0:00:12]} 31. Kh2 {[%clk 0:00:18]}  Qxe5 {[%clk 0:00:12]} 32. Bd6 {[%clk 0:00:18]}  Qe4 {[%clk 0:00:09]} 33. Qf6 {[%clk 0:00:17]}  g6 {[%clk 0:00:04]} 34. Be5 {[%clk 0:00:18]}  Kf8 {[%clk 0:00:04]} 35. Bd6+ {[%clk 0:00:12]}  Kg8 {[%clk 0:00:04]} 36. Rf3 {[%clk 0:00:13]}  h6 {[%clk 0:00:01]} 37. Be5 {[%clk 0:00:13]}  Kf8 {[%clk 0:00:01]} 38. Qxe6 {[%clk 0:00:12]}  Qxf3 {[%clk 0:00:02]} 39. Qd6+ {[%clk 0:00:13]}  Kg8 {[%clk 0:00:02]} 40. gxf3 {[%clk 0:00:14]} 1-0


[Site "https://www.chess.com"]

[Event "Titled Tuesday Blitz February 21 Early 2023"]
[White "Ozkan, Ervin"]
[Black "Grot, Blazej"]
[WhiteFideId "6306004"]
[BlackFideId "21835845"]
[WhiteElo "2179"]
[BlackElo "1990"]
[Result "0-1"]
[Round "03"]
[TimeControl "180+2"]
[Date "2023.02.21"]
[WhiteClock "0:00:10"]
[BlackClock "0:00:37"]

1. d4 {[%clk 0:03:00]}  Nf6 {[%clk 0:02:55]} 2. Bf4 {[%clk 0:03:01]}  e6 {[%clk 0:02:53]} 3. e3 {[%clk 0:03:01]}  d5 {[%clk 0:02:53]} 4. Nd2 {[%clk 0:02:59]}  c5 {[%clk 0:02:47]} 5. c3 {[%clk 0:02:58]}  Bd6 {[%clk 0:02:47]} 6. Bb5+ {[%clk 0:02:52]}  Nc6 {[%clk 0:02:45]} 7. Bxc6+ {[%clk 0:02:52]}  bxc6 {[%clk 0:02:42]} 8. Bxd6 {[%clk 0:02:53]}  Qxd6 {[%clk 0:02:41]} 9. Qa4 {[%clk 0:02:54]}  cxd4 {[%clk 0:02:33]} 10. cxd4 {[%clk 0:02:54]}  Bd7 {[%clk 0:02:32]} 11. Ngf3 {[%clk 0:02:35]}  O-O {[%clk 0:02:31]} 12. O-O {[%clk 0:02:35]}  Rfb8 {[%clk 0:02:26]} 13. Nb3 {[%clk 0:02:25]}  Ne4 {[%clk 0:02:20]} 14. Rfc1 {[%clk 0:02:21]}  c5 {[%clk 0:02:15]} 15. Qa3 {[%clk 0:02:21]}  cxd4 {[%clk 0:02:10]} 16. Qxd6 {[%clk 0:02:19]}  Nxd6 {[%clk 0:02:11]} 17. exd4 {[%clk 0:02:09]}  Bb5 {[%clk 0:02:06]} 18. Nc5 {[%clk 0:01:57]}  Be2 {[%clk 0:02:04]} 19. b3 {[%clk 0:01:39]}  Bxf3 {[%clk 0:01:58]} 20. gxf3 {[%clk 0:01:40]}  Nf5 {[%clk 0:01:56]} 21. Na6 {[%clk 0:00:57]}  Rb6 {[%clk 0:01:41]} 22. Nc7 {[%clk 0:00:53]}  Rab8 {[%clk 0:01:25]} 23. Rc5 {[%clk 0:00:42]}  Nxd4 {[%clk 0:01:23]} 24. Kg2 {[%clk 0:00:43]}  h6 {[%clk 0:01:17]} 25. Rac1 {[%clk 0:00:38]}  R8b7 {[%clk 0:01:12]} 26. Ne8 {[%clk 0:00:19]}  Ra6 {[%clk 0:01:04]} 27. Rc8 {[%clk 0:00:17]}  Kh7 {[%clk 0:00:59]} 28. R1c7 {[%clk 0:00:14]}  Rxc7 {[%clk 0:00:55]} 29. Rxc7 {[%clk 0:00:15]}  Kg6 {[%clk 0:00:51]} 30. h4 {[%clk 0:00:12]}  h5 {[%clk 0:00:48]} 31. Kg3 {[%clk 0:00:10]}  Nf5+ {[%clk 0:00:43]} 32. Kh3 {[%clk 0:00:10]}  Rxa2 {[%clk 0:00:43]} 33. b4 {[%clk 0:00:10]}  Rxf2 {[%clk 0:00:37]} 0-1


[Site "https://www.chess.com"]

[Event "Titled Tuesday Blitz February 21 Early 2023"]
[White "Csonka, Balazs"]
[Black "Poeta, Caio Medeiros"]
[WhiteFideId "742910"]
[BlackFideId "2142660"]
[WhiteElo "2496"]
[BlackElo "2088"]
[Result "1-0"]
[Round "03"]
[TimeControl "180+2"]
[Date "2023.02.21"]
[WhiteClock "0:00:06"]
[BlackClock "0:00:30"]

1. e4 {[%clk 0:03:00]}  c6 {[%clk 0:02:59]} 2. Nf3 {[%clk 0:02:56]}  d5 {[%clk 0:03:00]} 3. d3 {[%clk 0:02:56]}  Bg4 {[%clk 0:02:58]} 4. h3 {[%clk 0:02:53]}  Bxf3 {[%clk 0:02:58]} 5. Qxf3 {[%clk 0:02:54]}  e6 {[%clk 0:02:58]} 6. g3 {[%clk 0:02:30]}  g6 {[%clk 0:02:56]} 7. e5 {[%clk 0:02:11]}  c5 {[%clk 0:02:38]} 8. Qe2 {[%clk 0:01:40]}  Nc6 {[%clk 0:02:37]} 9. Bg2 {[%clk 0:01:40]}  Bg7 {[%clk 0:02:36]} 10. f4 {[%clk 0:01:38]}  Rc8 {[%clk 0:02:35]} 11. O-O {[%clk 0:01:36]}  Nge7 {[%clk 0:02:35]} 12. c4 {[%clk 0:01:24]}  O-O {[%clk 0:02:35]} 13. Nc3 {[%clk 0:01:24]}  Nf5 {[%clk 0:02:33]} 14. Kh2 {[%clk 0:01:13]}  Nfd4 {[%clk 0:02:28]} 15. Qf2 {[%clk 0:01:12]}  dxc4 {[%clk 0:02:24]} 16. dxc4 {[%clk 0:01:13]}  f6 {[%clk 0:02:13]} 17. exf6 {[%clk 0:01:10]}  Qxf6 {[%clk 0:02:13]} 18. Be3 {[%clk 0:01:05]}  e5 {[%clk 0:02:09]} 19. Rae1 {[%clk 0:00:53]}  exf4 {[%clk 0:02:07]} 20. Bxf4 {[%clk 0:00:52]}  Kh8 {[%clk 0:01:50]} 21. Ne4 {[%clk 0:00:36]}  Qd8 {[%clk 0:01:26]} 22. Qd2 {[%clk 0:00:31]}  b6 {[%clk 0:01:24]} 23. Bg5 {[%clk 0:00:20]}  Qd7 {[%clk 0:01:22]} 24. Nf6 {[%clk 0:00:18]}  Bxf6 {[%clk 0:01:14]} 25. Rxf6 {[%clk 0:00:19]}  h5 {[%clk 0:00:40]} 26. Bxc6 {[%clk 0:00:10]}  Rxc6 {[%clk 0:00:30]} 27. Rxf8+ {[%clk 0:00:10]}  Kh7 {[%clk 0:00:31]} 28. Rf2 {[%clk 0:00:08]}  Rc8 {[%clk 0:00:29]} 29. Qe3 {[%clk 0:00:07]}  Rc7 {[%clk 0:00:27]} 30. Qe8 {[%clk 0:00:06]}  Qg7 {[%clk 0:00:26]} 31. Re7 {[%clk 0:00:04]}  Rxe7 {[%clk 0:00:25]} 32. Qxe7 {[%clk 0:00:05]}  Nf5 {[%clk 0:00:26]} 33. Qxg7+ {[%clk 0:00:04]}  Kxg7 {[%clk 0:00:27]} 34. Rxf5 {[%clk 0:00:04]}  gxf5 {[%clk 0:00:28]} 35. Kg2 {[%clk 0:00:05]}  Kf7 {[%clk 0:00:28]} 36. h4 {[%clk 0:00:05]}  Ke6 {[%clk 0:00:29]} 37. Kf3 {[%clk 0:00:06]}  Ke5 {[%clk 0:00:30]} 38. Ke3 {[%clk 0:00:06]}  f4+ {[%clk 0:00:30]} 39. Bxf4+ {[%clk 0:00:06]}  Kf5 {[%clk 0:00:30]} 40. Bb8 {[%clk 0:00:06]} 1-0


[Site "https://www.chess.com"]

[Event "Titled Tuesday Blitz February 21 Early 2023"]
[White "Zacurdajev, Dmitry"]
[Black "Aydincelebi, Kagan"]
[WhiteFideId "4196309"]
[BlackFideId "6361102"]
[WhiteElo "2273"]
[BlackElo "2280"]
[Result "0-1"]
[Round "03"]
[TimeControl "180+2"]
[Date "2023.02.21"]
[WhiteClock "0:01:32"]
[BlackClock "0:02:18"]

1. d4 {[%clk 0:03:00]}  Nf6 {[%clk 0:03:00]} 2. c4 {[%clk 0:03:00]}  e6 {[%clk 0:03:00]} 3. Nc3 {[%clk 0:03:01]}  c5 {[%clk 0:02:59]} 4. d5 {[%clk 0:03:00]}  exd5 {[%clk 0:03:00]} 5. cxd5 {[%clk 0:03:01]}  d6 {[%clk 0:03:01]} 6. Nf3 {[%clk 0:03:00]}  g6 {[%clk 0:03:01]} 7. Bf4 {[%clk 0:03:01]}  a6 {[%clk 0:03:01]} 8. a4 {[%clk 0:03:00]}  Bg7 {[%clk 0:03:01]} 9. h3 {[%clk 0:03:01]}  O-O {[%clk 0:03:02]} 10. e3 {[%clk 0:03:02]}  Qe7 {[%clk 0:03:02]} 11. Be2 {[%clk 0:03:01]}  Nbd7 {[%clk 0:03:02]} 12. O-O {[%clk 0:03:01]}  Rb8 {[%clk 0:03:03]} 13. a5 {[%clk 0:02:52]}  b5 {[%clk 0:02:59]} 14. axb6 {[%clk 0:02:51]}  Rxb6 {[%clk 0:02:59]} 15. Nd2 {[%clk 0:02:46]}  Ne8 {[%clk 0:02:56]} 16. Nc4 {[%clk 0:02:45]}  Rb4 {[%clk 0:02:56]} 17. Ra4 {[%clk 0:02:37]}  Ne5 {[%clk 0:02:42]} 18. Bxe5 {[%clk 0:02:22]}  Bxe5 {[%clk 0:02:41]} 19. Nxe5 {[%clk 0:02:19]}  Qxe5 {[%clk 0:02:42]} 20. Rxb4 {[%clk 0:02:18]}  cxb4 {[%clk 0:02:43]} 21. Na4 {[%clk 0:02:17]}  Nf6 {[%clk 0:02:41]} 22. Bf3 {[%clk 0:02:15]}  Bd7 {[%clk 0:02:38]} 23. b3 {[%clk 0:02:01]}  Rc8 {[%clk 0:02:28]} 24. Qd3 {[%clk 0:01:49]}  Bb5 {[%clk 0:02:26]} 25. Qd2 {[%clk 0:01:42]}  Bxf1 {[%clk 0:02:25]} 26. Kxf1 {[%clk 0:01:42]}  Qa1+ {[%clk 0:02:23]} 27. Ke2 {[%clk 0:01:32]}  Qb1 {[%clk 0:02:18]} 0-1


[Site "https://www.chess.com"]

[Event "Titled Tuesday Blitz February 21 Early 2023"]
[White "Wahedi, Ahmad Siar"]
[Black "Melikyan, Gnel"]
[WhiteFideId "4651260"]
[BlackFideId "54109990"]
[WhiteElo "2274"]
[BlackElo "2238"]
[Result "0-1"]
[Round "03"]
[TimeControl "180+2"]
[Date "2023.02.21"]
[WhiteClock "0:00:23"]
[BlackClock "0:00:12"]

1. e4 {[%clk 0:03:00]}  Na6 {[%clk 0:02:54]} 2. d4 {[%clk 0:02:57]}  c5 {[%clk 0:02:52]} 3. Nf3 {[%clk 0:02:56]}  cxd4 {[%clk 0:02:52]} 4. Nxd4 {[%clk 0:02:56]}  Nc5 {[%clk 0:02:52]} 5. Nc3 {[%clk 0:02:55]}  d6 {[%clk 0:02:52]} 6. f3 {[%clk 0:02:53]}  g6 {[%clk 0:02:51]} 7. Be3 {[%clk 0:02:52]}  Bg7 {[%clk 0:02:52]} 8. Nde2 {[%clk 0:02:50]}  Qb6 {[%clk 0:02:40]} 9. Qc1 {[%clk 0:02:42]}  Nf6 {[%clk 0:02:37]} 10. g3 {[%clk 0:02:39]}  O-O {[%clk 0:02:34]} 11. Bg2 {[%clk 0:02:39]}  Be6 {[%clk 0:02:30]} 12. O-O {[%clk 0:02:37]}  Bc4 {[%clk 0:02:25]} 13. Re1 {[%clk 0:02:28]}  Rac8 {[%clk 0:02:21]} 14. Na4 {[%clk 0:02:24]}  Qc7 {[%clk 0:02:08]} 15. Nxc5 {[%clk 0:02:23]}  dxc5 {[%clk 0:02:08]} 16. c3 {[%clk 0:02:21]}  Rfd8 {[%clk 0:02:04]} 17. Nf4 {[%clk 0:02:11]}  b6 {[%clk 0:01:52]} 18. Qc2 {[%clk 0:02:04]}  Rd7 {[%clk 0:01:48]} 19. Rad1 {[%clk 0:02:03]}  Rcd8 {[%clk 0:01:47]} 20. Rxd7 {[%clk 0:02:02]}  Qxd7 {[%clk 0:01:45]} 21. b3 {[%clk 0:01:59]}  Ba6 {[%clk 0:01:40]} 22. c4 {[%clk 0:01:58]}  e6 {[%clk 0:01:34]} 23. Bf1 {[%clk 0:01:45]}  Bb7 {[%clk 0:01:26]} 24. Be2 {[%clk 0:01:44]}  g5 {[%clk 0:01:13]} 25. Ng2 {[%clk 0:01:42]}  g4 {[%clk 0:01:12]} 26. Rd1 {[%clk 0:01:37]}  Qe8 {[%clk 0:01:09]} 27. Rxd8 {[%clk 0:01:36]}  Qxd8 {[%clk 0:01:09]} 28. Bg5 {[%clk 0:01:23]}  Qd4+ {[%clk 0:01:02]} 29. Be3 {[%clk 0:01:23]}  Qa1+ {[%clk 0:01:02]} 30. Kf2 {[%clk 0:01:22]}  gxf3 {[%clk 0:01:00]} 31. Bxf3 {[%clk 0:01:22]}  Qe5 {[%clk 0:00:41]} 32. Bf4 {[%clk 0:01:16]}  Nxe4+ {[%clk 0:00:39]} 33. Bxe4 {[%clk 0:00:52]}  Qxe4 {[%clk 0:00:39]} 34. Qxe4 {[%clk 0:00:52]}  Bxe4 {[%clk 0:00:40]} 35. Bb8 {[%clk 0:00:42]}  Bd4+ {[%clk 0:00:39]} 36. Ne3 {[%clk 0:00:42]}  a6 {[%clk 0:00:38]} 37. Ke2 {[%clk 0:00:40]}  Bb1 {[%clk 0:00:38]} 38. a3 {[%clk 0:00:39]}  Ba2 {[%clk 0:00:36]} 39. Ba7 {[%clk 0:00:38]}  b5 {[%clk 0:00:35]} 40. cxb5 {[%clk 0:00:37]}  axb5 {[%clk 0:00:35]} 41. a4 {[%clk 0:00:38]}  b4 {[%clk 0:00:15]} 42. Nc2 {[%clk 0:00:35]}  Bg1 {[%clk 0:00:15]} 43. Ne3 {[%clk 0:00:35]}  Bxb3 {[%clk 0:00:14]} 44. Bxc5 {[%clk 0:00:34]}  Bxa4 {[%clk 0:00:12]} 45. Bxb4 {[%clk 0:00:34]}  Bc6 {[%clk 0:00:11]} 46. h4 {[%clk 0:00:33]}  h5 {[%clk 0:00:09]} 47. Bd6 {[%clk 0:00:33]}  Kh7 {[%clk 0:00:09]} 48. Bf4 {[%clk 0:00:33]}  Kg6 {[%clk 0:00:09]} 49. Nc4 {[%clk 0:00:32]}  f6 {[%clk 0:00:06]} 50. Be3 {[%clk 0:00:28]}  Bb5 {[%clk 0:00:03]} 51. Bxg1 {[%clk 0:00:27]}  Bxc4+ {[%clk 0:00:04]} 52. Ke3 {[%clk 0:00:27]}  Kf5 {[%clk 0:00:05]} 53. Kf3 {[%clk 0:00:27]}  Bd5+ {[%clk 0:00:05]} 54. Ke3 {[%clk 0:00:22]}  Kg4 {[%clk 0:00:05]} 55. Bf2 {[%clk 0:00:23]}  Kh3 {[%clk 0:00:06]} 56. Be1 {[%clk 0:00:23]}  Kg2 {[%clk 0:00:06]} 57. Kf4 {[%clk 0:00:23]}  Bb3 {[%clk 0:00:05]} 58. Bc3 {[%clk 0:00:22]}  e5+ {[%clk 0:00:05]} 59. Kf5 {[%clk 0:00:23]}  Kxg3 {[%clk 0:00:05]} 60. Kxf6 {[%clk 0:00:23]}  e4 {[%clk 0:00:05]} 61. Kg5 {[%clk 0:00:23]}  Bd1 {[%clk 0:00:06]} 62. Bd2 {[%clk 0:00:21]}  Bg4 {[%clk 0:00:05]} 63. Bc1 {[%clk 0:00:21]}  Kf3 {[%clk 0:00:05]} 64. Kf6 {[%clk 0:00:19]}  e3 {[%clk 0:00:06]} 65. Ke5 {[%clk 0:00:19]}  e2 {[%clk 0:00:06]} 66. Bd2 {[%clk 0:00:19]}  Kf2 {[%clk 0:00:07]} 67. Kf4 {[%clk 0:00:18]}  e1=Q {[%clk 0:00:07]} 68. Bxe1+ {[%clk 0:00:18]}  Kxe1 {[%clk 0:00:08]} 69. Kg3 {[%clk 0:00:19]}  Kf1 {[%clk 0:00:09]} 70. Kh2 {[%clk 0:00:19]}  Kf2 {[%clk 0:00:09]} 71. Kh1 {[%clk 0:00:20]}  Kg3 {[%clk 0:00:10]} 72. Kg1 {[%clk 0:00:20]}  Bf3 {[%clk 0:00:10]} 73. Kf1 {[%clk 0:00:20]}  Kxh4 {[%clk 0:00:10]} 74. Kg1 {[%clk 0:00:21]}  Kg3 {[%clk 0:00:10]} 75. Kf1 {[%clk 0:00:21]}  h4 {[%clk 0:00:11]} 76. Kg1 {[%clk 0:00:22]}  h3 {[%clk 0:00:12]} 77. Kf1 {[%clk 0:00:23]}  Bg2+ {[%clk 0:00:12]} 0-1


[Site "https://www.chess.com"]

[Event "Titled Tuesday Blitz February 21 Early 2023"]
[White "Arabidze, Meri"]
[Black "Rengifo Blancas, Renzo Jhonathan"]
[WhiteFideId "13604040"]
[BlackFideId "3807185"]
[WhiteElo "2441"]
[BlackElo "2131"]
[Result "0-1"]
[Round "03"]
[TimeControl "180+2"]
[Date "2023.02.21"]
[WhiteClock "0:00:03"]
[BlackClock "0:00:28"]

1. Nf3 {[%clk 0:00:17]}  Nf6 {[%clk 0:02:58]} 2. g3 {[%clk 0:00:17]}  d5 {[%clk 0:02:58]} 3. Bg2 {[%clk 0:00:18]}  g6 {[%clk 0:02:57]} 4. O-O {[%clk 0:00:18]}  Bg7 {[%clk 0:02:58]} 5. d4 {[%clk 0:00:18]}  O-O {[%clk 0:02:59]} 6. c4 {[%clk 0:00:19]}  c6 {[%clk 0:03:00]} 7. cxd5 {[%clk 0:00:20]}  cxd5 {[%clk 0:03:00]} 8. Nc3 {[%clk 0:00:20]}  Nc6 {[%clk 0:03:01]} 9. Ne5 {[%clk 0:00:20]}  Bd7 {[%clk 0:03:01]} 10. e3 {[%clk 0:00:19]}  e6 {[%clk 0:02:59]} 11. Nd3 {[%clk 0:00:20]}  Rc8 {[%clk 0:02:58]} 12. b3 {[%clk 0:00:20]}  Nxd4 {[%clk 0:02:57]} 13. exd4 {[%clk 0:00:16]}  Rxc3 {[%clk 0:02:57]} 14. Bb2 {[%clk 0:00:16]}  Rc8 {[%clk 0:02:56]} 15. Nc5 {[%clk 0:00:16]}  b6 {[%clk 0:02:55]} 16. Nd3 {[%clk 0:00:14]}  Bb5 {[%clk 0:02:55]} 17. Re1 {[%clk 0:00:14]}  Nd7 {[%clk 0:02:41]} 18. a4 {[%clk 0:00:13]}  Ba6 {[%clk 0:02:40]} 19. Ne5 {[%clk 0:00:11]}  Re8 {[%clk 0:02:38]} 20. b4 {[%clk 0:00:10]}  Nxe5 {[%clk 0:02:37]} 21. dxe5 {[%clk 0:00:11]}  Bc4 {[%clk 0:02:37]} 22. Bd4 {[%clk 0:00:11]}  Qd7 {[%clk 0:02:36]} 23. a5 {[%clk 0:00:10]}  b5 {[%clk 0:02:33]} 24. Bc5 {[%clk 0:00:10]}  a6 {[%clk 0:02:32]} 25. Bd6 {[%clk 0:00:09]}  Bf8 {[%clk 0:02:32]} 26. Bxf8 {[%clk 0:00:09]}  Rxf8 {[%clk 0:02:33]} 27. Qd4 {[%clk 0:00:08]}  Qe7 {[%clk 0:02:32]} 28. Qb6 {[%clk 0:00:07]}  Ra8 {[%clk 0:02:18]} 29. Rab1 {[%clk 0:00:07]}  Rfb8 {[%clk 0:02:18]} 30. Qd4 {[%clk 0:00:07]}  Rc8 {[%clk 0:02:12]} 31. h4 {[%clk 0:00:07]}  Ba2 {[%clk 0:02:12]} 32. Rb2 {[%clk 0:00:06]}  Bc4 {[%clk 0:02:10]} 33. Rbb1 {[%clk 0:00:05]}  Rc6 {[%clk 0:02:09]} 34. h5 {[%clk 0:00:05]}  Rac8 {[%clk 0:02:09]} 35. h6 {[%clk 0:00:06]}  Qg5 {[%clk 0:02:08]} 36. Qf4 {[%clk 0:00:03]}  Qxf4 {[%clk 0:02:07]} 37. gxf4 {[%clk 0:00:04]}  Bd3 {[%clk 0:02:07]} 38. Rbd1 {[%clk 0:00:04]}  Bf5 {[%clk 0:02:07]} 39. Bf1 {[%clk 0:00:03]}  Rc2 {[%clk 0:02:05]} 40. Ra1 {[%clk 0:00:03]}  R8c3 {[%clk 0:02:00]} 41. Re3 {[%clk 0:00:03]}  Rc8 {[%clk 0:01:54]} 42. Ree1 {[%clk 0:00:03]}  Kf8 {[%clk 0:01:52]} 43. Red1 {[%clk 0:00:02]}  Ke7 {[%clk 0:01:52]} 44. Rdb1 {[%clk 0:00:02]}  Kd7 {[%clk 0:01:15]} 45. Rb3 {[%clk 0:00:02]}  R2c3 {[%clk 0:01:00]} 46. Rxc3 {[%clk 0:00:02]}  Rxc3 {[%clk 0:01:01]} 47. Rd1 {[%clk 0:00:01]}  Rb3 {[%clk 0:00:52]} 48. Rd4 {[%clk 0:00:01]}  Rb1 {[%clk 0:00:48]} 49. Kg2 {[%clk 0:00:02]}  Bh3+ {[%clk 0:00:46]} 50. Kxh3 {[%clk 0:00:02]}  Rxf1 {[%clk 0:00:46]} 51. Kg2 {[%clk 0:00:03]}  Rb1 {[%clk 0:00:44]} 52. Kf3 {[%clk 0:00:03]}  Rb3+ {[%clk 0:00:44]} 53. Kg4 {[%clk 0:00:03]}  Rb2 {[%clk 0:00:37]} 54. Kg5 {[%clk 0:00:03]}  Ke7 {[%clk 0:00:38]} 55. Rd3 {[%clk 0:00:03]}  Rc2 {[%clk 0:00:34]} 56. f3 {[%clk 0:00:03]}  Rg2+ {[%clk 0:00:32]} 57. Kh4 {[%clk 0:00:03]}  Rc2 {[%clk 0:00:32]} 58. Kg5 {[%clk 0:00:02]}  Rc4 {[%clk 0:00:32]} 59. Rd2 {[%clk 0:00:02]}  Rxb4 {[%clk 0:00:31]} 60. Rc2 {[%clk 0:00:02]}  Rc4 {[%clk 0:00:31]} 61. Rb2 {[%clk 0:00:03]}  d4 {[%clk 0:00:30]} 62. Rd2 {[%clk 0:00:03]}  b4 {[%clk 0:00:30]} 63. f5 {[%clk 0:00:03]}  exf5 {[%clk 0:00:30]} 64. f4 {[%clk 0:00:04]}  b3 {[%clk 0:00:28]} 65. Rb2 {[%clk 0:00:04]}  Rc3 {[%clk 0:00:28]} 66. Rd2 {[%clk 0:00:03]}  d3 {[%clk 0:00:28]} 67. Rd1 {[%clk 0:00:03]}  b2 {[%clk 0:00:28]} 0-1


[Site "https://www.chess.com"]